fUSD/lending_fUSD_20250115
["ID","MTS","AMOUNT","RATE_DAILY","PERIOD"]
[348965723,1736901046449,-500.0,0.0001182,2]
[348965724,1736901046461,-501.65646669,0.0001182,2]
[348965725,1736901046470,-255.54597797,0.0001182,2]
[348965726,1736901046480,-500.0,0.0001182,2]
[348965727,1736901046489,-500.0,0.0001182,2]
[348965728,1736901046499,-500.0,0.0001182,2]
[348965729,1736901046508,-500.0,0.0001182,2]
[348965730,1736901046517,-501.52614777,0.0001182,2]
[348965731,1736901046526,-500.0,0.0001182,2]
[348965732,1736901046535,-500.0,0.0001182,2]
[348965733,1736901046544,-500.0,0.0001182,2]
[348965734,1736901046553,-500.0,0.0001182,2]
[348965735,1736901046562,-501.70264171,0.0001182,2]
[348965736,1736901046571,-175.45,0.0001182,2]
[348965737,1736901046581,-500.0,0.0001182,2]
[348965738,1736901046590,-500.0,0.0001182,2]
[348965739,1736901046599,-500.0,0.0001182,2]
[348965740,1736901046609,-500.0,0.0001182,2]
[348965741,1736901046619,-500.0,0.0001182,2]
[348965742,1736901046628,-500.0,0.0001182,2]
[348965743,1736901046638,-500.0,0.0001182,2]
[348965744,1736901046647,-500.0,0.0001182,2]
[348965745,1736901046658,-500.0,0.0001182,2]
[348965746,1736901046670,-500.0,0.0001182,2]
[348965747,1736901046679,-500.0,0.0001182,2]
[348965748,1736901046691,-501.35271764,0.0001182,2]
[348965749,1736901046699,-500.0,0.0001182,2]
[348965750,1736901046708,-500.0,0.0001182,2]
[348965751,1736901046718,-500.0,0.0001182,2]
[348965752,1736901046727,-500.0,0.0001182,2]
[348965753,1736901046737,-501.71796041,0.0001182,2]
[348965754,1736901046747,-500.0,0.0001182,2]
[348965755,1736901046756,-500.0,0.0001182,2]
[348965756,1736901046766,-500.0,0.0001182,2]
[348965757,1736901046775,-500.0,0.0001182,2]
[348965758,1736901046785,-500.0,0.0001182,2]
[348965759,1736901046795,-500.0,0.0001182,2]
[348965760,1736901046805,-500.0,0.0001182,2]
[348965761,1736901046815,-578.10602452,0.0001182,2]
[348965762,1736901046824,-502.8661683,0.0001182,2]
[348965763,1736901046834,-500.0,0.0001182,2]
[348965764,1736901046843,-500.0,0.0001182,2]
[348965765,1736901046853,-500.0,0.0001182,2]
[348965766,1736901046863,-500.0,0.0001182,2]
[348965767,1736901046872,-500.0,0.0001182,2]
[348965768,1736901046882,-194.7,0.0001182,2]
[348965769,1736901046892,-500.0,0.0001182,2]
[348965770,1736901046902,-500.0,0.0001182,2]
[348965771,1736901046912,-500.0,0.0001182,2]
[348965772,1736901046926,-500.0,0.0001182,2]
[348965773,1736901046936,-500.0,0.0001182,2]
[348965774,1736901046946,-500.0,0.0001182,2]
[348965775,1736901046955,-500.0,0.0001182,2]
[348965776,1736901046967,-500.0,0.0001182,2]
[348965777,1736901046977,-500.0,0.0001182,2]
[348965778,1736901046987,-500.0,0.0001182,2]
[348965779,1736901046996,-500.0,0.0001182,2]
[348965780,1736901047005,-604.7,0.0001182,2]
[348965781,1736901047015,-500.0,0.0001182,2]
[348965782,1736901047025,-500.0,0.0001182,2]
[348965783,1736901047035,-500.0,0.0001182,2]
[348965784,1736901047044,-500.0,0.0001182,2]
[348965785,1736901047053,-350.03996141,0.0001182,2]
[348965786,1736901047063,-257.67071372,0.0001182,2]
[348965787,1736901047073,-500.0,0.0001182,2]
[348965788,1736901047083,-504.23125441,0.0001182,2]
[348965789,1736901047092,-500.0,0.0001182,2]
[348965790,1736901047102,-500.0,0.0001182,2]
[348965791,1736901047112,-500.0,0.0001182,2]
[348965792,1736901047121,-500.0,0.0001182,2]
[348965793,1736901047131,-500.0,0.0001182,2]
[348965794,1736901047144,-500.0,0.0001182,2]
[348965795,1736901047154,-552.42,0.0001182,2]
[348965796,1736901047163,-500.0,0.0001182,2]
[348965797,1736901047176,-500.0,0.0001182,2]
[348965798,1736901047186,-500.0,0.0001182,2]
[348965799,1736901047196,-500.0,0.0001182,2]
[348965800,1736901047205,-903.37,0.0001182,2]
[348965801,1736901047215,-500.0,0.0001182,2]
[348965802,1736901047224,-538.49520279,0.0001182,2]
[348965803,1736901047233,-257.95926261,0.0001182,2]
[348965804,1736901047243,-500.0,0.0001182,2]
[348965805,1736901047252,-500.0,0.0001182,2]
[348965806,1736901047263,-500.0,0.0001182,2]
[348965807,1736901047272,-500.0,0.0001182,2]
[348965808,1736901047282,-500.0,0.0001182,2]
[348965809,1736901047291,-500.0,0.0001182,2]
[348965810,1736901047301,-500.0,0.0001182,2]
[348965811,1736901047311,-500.0,0.0001182,2]
[348965812,1736901047321,-500.0,0.0001182,2]
[348965813,1736901047331,-500.0,0.0001182,2]
[348965814,1736901047341,-500.0,0.0001182,2]
[348965815,1736901047351,-741.34,0.0001182,2]
[348965816,1736901047360,-134.84154086,0.0001182,2]
[348965817,1736901047741,-367.52898745,0.0001182,2]
[348965818,1736901047751,-500.0,0.0001182,2]
[348965819,1736901047761,-358.51,0.0001182,2]
[348965820,1736901047771,-500.0,0.0001182,2]
[348965821,1736901047781,-500.0,0.0001182,2]
[348965822,1736901047791,-500.0,0.0001182,2]
[348965823,1736901047801,-500.0,0.0001182,2]
[348965824,1736901047810,-1443.48,0.0001182,2]
[348965825,1736901047820,-500.0,0.0001182,2]
[348965826,1736901047829,-1383.34,0.0001182,2]
[348965827,1736901047839,-510.17,0.0001182,2]
[348965828,1736901047849,-447.5412446,0.0001182,2]
[348965829,1736901047858,-468.65,0.0001182,2]
[348965830,1736901047868,-857.87,0.0001182,2]
[348965831,1736901047877,-857.87,0.0001182,2]
[348965832,1736901047887,-509.60431067,0.0001182,2]
[348965833,1736901047896,-595.96,0.0001182,2]
[348965834,1736901047906,-500.0,0.0001182,2]
[348965835,1736901047916,-500.0,0.0001182,2]
[348965836,1736901047926,-500.0,0.0001182,2]
[348965837,1736901047935,-503.88968478,0.0001182,2]
[348965838,1736901047946,-531.12042523,0.0001182,2]
[348965839,1736901047956,-500.0,0.0001182,2]
[348965840,1736901047966,-500.0,0.0001182,2]
[348965841,1736901047975,-271.82610563,0.0001182,2]
[348965842,1736901047987,-316.73243402,0.0001182,2]
[348965843,1736901047997,-954.43,0.0001182,2]
[348965844,1736901048006,-537.6,0.0001182,2]
[348965845,1736901048015,-500.0,0.0001182,2]
[348965846,1736901048026,-500.0,0.0001182,2]
[348965847,1736901048035,-339.58468097,0.0001182,2]
[348965848,1736901048045,-2370.3,0.0001182,2]
[348965849,1736901048056,-1156.75,0.0001182,2]
[348965850,1736901048066,-2092.95,0.0001182,2]
[348965851,1736901048076,-500.0,0.0001182,2]
[348965852,1736901048086,-500.0,0.0001182,2]
[348965853,1736901048096,-500.0,0.0001182,2]
[348965854,1736901048106,-500.0,0.0001182,2]
[348965855,1736901048116,-500.0,0.0001182,2]
[348965856,1736901048126,-1246.5,0.0001182,2]
[348965857,1736901048136,-500.0,0.0001182,2]
[348965858,1736901048146,-550.15288501,0.00011821,2]
[348965859,1736901048160,-198.79711499,0.00011821,2]
[348965860,1736901048172,-667.8,0.00011821,2]
[348965861,1736901048182,-1657.57,0.00011821,2]
[348965862,1736901048192,-774.93,0.00011821,2]
[348965863,1736901048202,-546.59,0.00011821,2]
[348965864,1736901048212,-500.0,0.00011821,2]
[348965865,1736901048222,-500.0,0.00011821,2]
[348965866,1736901048231,-683.98,0.00011821,2]
[348965867,1736901048243,-500.0,0.00011821,2]
[348965868,1736901048252,-584.12,0.00011821,2]
[348965869,1736901048262,-500.0,0.00011821,2]
[348965870,1736901048272,-968.26,0.00011821,2]
[348965871,1736901048281,-1081.5,0.00011821,2]
[348965872,1736901048291,-975.21,0.00011821,2]
[348965873,1736901048301,-2035.83,0.00011821,2]
[348965874,1736901048311,-1827.01288501,0.00011821,2]
[348965875,1736901048323,-2412.47711499,0.00011821,2]
[348965876,1736901048332,-831.53,0.00011821,2]
[348965877,1736901048343,-534.61,0.00011821,2]
[348965878,1736901048353,-1318.85,0.00011821,2]
[348965879,1736901048363,-500.0,0.00011821,2]
[348965880,1736901048373,-703.0,0.00011821,2]
[348965881,1736901048383,-852.73,0.00011821,2]
[348965882,1736901048393,-500.0,0.00011821,2]
[348965883,1736901048403,-1027.22,0.00011821,2]
[348965884,1736901048413,-1493.23,0.00011821,2]
[348965885,1736901048425,-500.0,0.00011821,2]
[348965886,1736901048436,-500.0,0.00011899,2]
[348965887,1736901048446,-158.04,0.00011899,2]
[348965888,1736901048457,-1938.07,0.00011914,2]
[348965889,1736901048467,-1938.07,0.00011914,2]
[348965890,1736901048478,-1938.07,0.00011914,2]
[348965891,1736901048488,-500.0,0.00011917,2]
[348965892,1736901048498,-429.93842545,0.00011962,2]
[348965893,1736901048508,-1182.48376778,0.00011969,2]
[348965894,1736901048518,-494.77597022,0.0001197,2]
[348965895,1736901048529,-567.25,0.0001197,2]
[348965896,1736901048539,-1142.06,0.0001197,2]
[348965897,1736901048549,-3468.24,0.0001197,2]
[348965898,1736901048560,-817.65,0.0001197,2]
[348965899,1736901048570,-500.0,0.0001197,2]
[348965900,1736901048580,-511.83,0.0001197,2]
[348965901,1736901048590,-651.12,0.0001197,2]
[348965902,1736901048601,-500.0,0.0001197,2]
[348965903,1736901048610,-529.053445,0.0001197,2]
[348965904,1736901048620,-500.0,0.0001197,2]
[348965905,1736901048630,-1079.05,0.0001197,2]
[348965906,1736901048640,-453.034004,0.0001197,2]
[348965907,1736901048649,-2361.0,0.0001197,2]
[348965908,1736901048658,-2322.83,0.0001197,2]
[348965909,1736901048668,-684.36,0.0001197,2]
[348965910,1736901048678,-673.65,0.0001197,2]
[348965911,1736901048688,-500.0,0.0001197,2]
[348965912,1736901048697,-1117.93,0.0001197,2]
[348965913,1736901048707,-500.0,0.0001197,2]
[348965914,1736901048717,-827.0,0.0001197,2]
[348965915,1736901048727,-500.0,0.0001197,2]
[348965916,1736901048736,-500.0,0.0001197,2]
[348965917,1736901048746,-667.66,0.0001197,2]
[348965918,1736901048756,-2252.59,0.0001197,2]
[348965919,1736901048766,-500.0,0.00011971,2]
[348965920,1736901048775,-500.0,0.00011971,2]
[348965921,1736901048785,-500.0,0.00011971,2]
[348965922,1736901048795,-1182.48376778,0.00011972,2]
[348965923,1736901048805,-1125.63725321,0.00011973,2]
[348965924,1736901048815,-494.77597022,0.00011974,2]
[348965925,1736901048826,-224.45334505,0.00011977,2]
[348965926,1736901048835,-1125.63725321,0.00011977,2]
[348965927,1736901048845,-2473.87985107,0.00011978,2]
[348965928,1736901048855,-1182.48376778,0.0001198,2]
[348965929,1736901048866,-2473.87985107,0.0001198,2]
[348965930,1736901048876,-224.45334505,0.00011981,2]
[348965931,1736901048885,-224.45334505,0.00011982,2]
[348965932,1736901048896,-494.77597022,0.00011982,2]
[348965933,1736901048906,-1125.63725321,0.00011982,2]
[348965934,1736901048917,-2473.87985107,0.00011983,2]
[348965935,1736901048927,-494.77597022,0.00011983,2]
[348965936,1736901048937,-224.45334505,0.00011987,2]
[348965937,1736901048947,-7605.2039855,0.00011988,2]
[348965938,1736901048957,-1125.63725321,0.00011989,2]
[348965939,1736901048968,-1182.48376778,0.00011989,2]
[348965940,1736901048978,-494.77597022,0.00011991,2]
[348965941,1736901048988,-224.45334505,0.00011992,2]
[348965942,1736901048998,-1125.63725321,0.00011994,2]
[348965943,1736901049008,-1182.48376778,0.00011994,2]
[348965944,1736901049018,-2473.87985107,0.00011996,2]
[348965945,1736901049028,-1182.48376778,0.00011997,2]
[348965946,1736901049038,-2473.87985107,0.00011997,2]
[348965947,1736901049048,-494.77597022,0.00011997,2]
[348965948,1736901049058,-2473.87985107,0.00011999,2]
[348965949,1736901049067,-1125.63725321,0.00012,2]
[348965950,1736901049078,-1000.0,0.00012,2]
[348965951,1736901049088,-2982.36264866,0.00012,2]
[348965952,1736901049098,-231.0,0.00012,2]
[348965953,1736901049107,-365.0,0.00012,2]
[348965954,1736901049117,-150.0,0.00012026,2]
[348965955,1736901049127,-150.0,0.00012027,2]
[348965956,1736901049137,-1500.0,0.0001203,2]
[348965957,1736901049147,-150.0,0.00012032,2]
[348965958,1736901049157,-150.0,0.00012033,2]
[348965959,1736901049168,-150.0,0.00012034,2]
[348965960,1736901049178,-1500.0,0.00012035,2]
[348965961,1736901049188,-150.0,0.00012042,2]
[348965962,1736901049198,-150.0,0.00012042,2]
[348965963,1736901049208,-150.0,0.00012044,2]
[348965964,1736901049218,-95.72523975,0.00012049,2]
[348965965,1736901049231,-54.27476025,0.00012049,2]
[348965966,1736901049241,-150.0,0.0001205,2]
[348965967,1736901049251,-150.0,0.00012051,2]
[348965968,1736901049261,-150.0,0.00012051,2]
[348965969,1736901049272,-150.0,0.00012053,2]
[348965970,1736901049281,-150.0,0.00012053,2]
[348965971,1736901049291,-376.3401392,0.00012053,2]
[348965972,1736901049302,-200.0,0.00012055,2]
[348965973,1736901049311,-150.0,0.00012056,2]
[348965974,1736901049322,-150.0,0.00012057,2]
[348965975,1736901049336,-150.0,0.00012057,2]
[348965976,1736901049346,-150.0,0.00012061,2]
[348965977,1736901049355,-150.0,0.00012061,2]
[348965978,1736901049365,-150.0,0.00012064,2]
[348965979,1736901049374,-150.0,0.00012064,2]
[348965980,1736901049383,-150.0,0.00012069,2]
[348965981,1736901049394,-150.0,0.00012069,2]
[348965982,1736901049404,-150.0,0.0001207,2]
[348965983,1736901049414,-150.0,0.0001207,2]
[348965984,1736901049425,-1500.0,0.00012071,2]
[348965985,1736901049435,-150.0,0.00012072,2]
[348965986,1736901049445,-150.0,0.00012072,2]
[348965987,1736901049458,-1500.0,0.00012072,2]
[348965988,1736901049470,-158.73271715,0.00012074,2]
[348965989,1736901049481,-580.61,0.00012075,2]
[348965990,1736901049492,-500.0,0.00012075,2]
[348965991,1736901049502,-516.83,0.00012075,2]
[348965992,1736901049512,-830.42,0.00012075,2]
[348965993,1736901049522,-500.0,0.00012075,2]
[348965994,1736901049710,-135.9473794,0.00012075,2]
[348965995,1736901049724,-1063.3026206,0.00012075,2]
[348965996,1736901049734,-1019.48,0.00012075,2]
[348965997,1736901049744,-500.0,0.00012075,2]
[348965998,1736901049754,-500.0,0.00012075,2]
[348965999,1736901049764,-642.99,0.00012075,2]
[348966000,1736901049773,-1789.09,0.00012075,2]
[348966001,1736901049782,-510.95,0.00012075,2]
[348966002,1736901049792,-500.0,0.00012075,2]
[348966003,1736901049801,-691.47,0.00012075,2]
[348966004,1736901049811,-788.9,0.00012075,2]
[348966005,1736901049820,-500.0,0.00012075,2]
[348966006,1736901049829,-578.1073799,0.00012075,2]
[348966007,1736901049849,-432.2026201,0.00012075,2]
[348966008,1736901049858,-512.58,0.00012075,2]
[348966009,1736901049868,-1591.39,0.00012075,2]
[348966010,1736901049877,-1127.26,0.00012075,2]
[348966011,1736901049888,-500.0,0.00012076,2]
[348966012,1736901049897,-500.0,0.00012076,2]
[348966013,1736901049906,-527.66,0.00012076,2]
[348966014,1736901049916,-500.0,0.00012076,2]
[348966015,1736901049931,-500.0,0.00012076,2]
[348966016,1736901049941,-500.0,0.00012076,2]
[348966017,1736901049950,-150.0,0.00012076,2]
[348966018,1736901049959,-500.0,0.00012076,2]
[348966019,1736901049970,-500.0,0.00012076,2]
[348966020,1736901049980,-500.0,0.00012076,2]
[348966021,1736901049989,-500.0,0.00012076,2]
[348966022,1736901049999,-500.0,0.00012076,2]
[348966023,1736901050008,-500.0,0.00012076,2]
[348966024,1736901050018,-500.0,0.00012076,2]
[348966025,1736901050027,-500.0,0.00012076,2]
[348966026,1736901050037,-500.0,0.00012076,2]
[348966027,1736901050048,-500.0,0.00012076,2]
[348966028,1736901050057,-500.0,0.00012076,2]
[348966029,1736901050066,-500.0,0.00012076,2]
[348966030,1736901050075,-500.0,0.00012076,2]
[348966031,1736901050084,-383.1423799,0.00012076,2]
[348966032,1736901050097,-116.8576201,0.00012076,2]
[348966033,1736901050106,-500.0,0.00012076,2]
[348966034,1736901050115,-500.0,0.00012076,2]
[348966035,1736901050125,-513.51,0.00012076,2]
[348966036,1736901050134,-500.0,0.00012076,2]
[348966037,1736901050144,-500.0,0.00012076,2]
[348966038,1736901050153,-500.0,0.00012076,2]
[348966039,1736901050162,-500.0,0.00012076,2]
[348966040,1736901050173,-500.0,0.00012076,2]
[348966041,1736901050182,-500.0,0.00012076,2]
[348966042,1736901050191,-500.0,0.00012076,2]
[348966043,1736901050200,-500.0,0.00012076,2]
[348966044,1736901050209,-285.1323799,0.00012076,2]
[348966045,1736901050221,-214.8676201,0.00012076,2]
[348966046,1736901050230,-500.0,0.00012076,2]
[348966047,1736901050239,-500.0,0.00012076,2]
[348966048,1736901050247,-500.0,0.00012076,2]
[348966049,1736901050257,-500.0,0.00012076,2]
[348966050,1736901050266,-500.0,0.00012076,2]
[348966051,1736901050275,-500.54,0.00012076,2]
[348966052,1736901050284,-500.0,0.00012076,2]
[348966053,1736901050293,-500.0,0.00012076,2]
[348966054,1736901050303,-514.49,0.00012076,2]
[348966055,1736901050312,-500.0,0.00012076,2]
[348966056,1736901050321,-500.0,0.00012076,2]
[348966057,1736901050330,-500.0,0.00012076,2]
[348966058,1736901050339,-500.0,0.00012076,2]
[348966059,1736901050349,-500.0,0.00012076,2]
[348966060,1736901050359,-500.0,0.00012076,2]
[348966061,1736901050368,-500.0,0.00012076,2]
[348966062,1736901050377,-500.0,0.00012076,2]
[348966063,1736901050386,-500.0,0.00012076,2]
[348966064,1736901050396,-589.13,0.00012076,2]
[348966065,1736901050406,-500.0,0.00012076,2]
[348966066,1736901050415,-2474.14,0.00012076,2]
[348966067,1736901050426,-500.0,0.00012076,2]
[348966068,1736901050436,-500.0,0.00012076,2]
[348966069,1736901050446,-500.0,0.00012076,2]
[348966070,1736901050456,-1787.3,0.00012076,2]
[348966071,1736901050466,-500.0,0.00012076,2]
[348966072,1736901050476,-500.0,0.00012076,2]
[348966073,1736901050485,-500.0,0.00012076,2]
[348966074,1736901050494,-505.29,0.00012076,2]
[348966075,1736901050504,-500.0,0.00012076,2]
[348966076,1736901050513,-500.0,0.00012076,2]
[348966077,1736901050523,-2065.81,0.00012076,2]
[348966078,1736901050532,-556.75,0.00012076,2]
[348966079,1736901050542,-618.31,0.00012076,2]
[348966080,1736901050552,-500.0,0.00012076,2]
[348966081,1736901050561,-500.0,0.00012076,2]
[348966082,1736901050570,-500.0,0.00012076,2]
[348966083,1736901050580,-500.0,0.00012076,2]
[348966084,1736901050589,-500.0,0.00012076,2]
[348966085,1736901050598,-500.0,0.00012076,2]
[348966086,1736901050608,-178.9723799,0.00012076,2]
[348966087,1736901050799,-500.0,9.999e-05,2]
[348966088,1736901050810,-500.0,0.00011095,2]
[348966089,1736901050819,-500.0,0.00011369,2]
[348966090,1736901050828,-500.0,0.00011643,2]
[348966091,1736901050838,-535.57388979,0.0001182,2]
[348966092,1736901050847,-500.0,0.00011917,2]
[348966093,1736901050857,-128.6276201,0.00012076,2]
[348966094,1736901050867,-500.0,0.00012076,2]
[348966095,1736901050876,-500.0,0.00012076,2]
[348966096,1736901050886,-500.0,0.00012076,2]
[348966097,1736901050895,-500.0,0.00012076,2]
[348966098,1736901050905,-500.0,0.00012076,2]
[348966099,1736901050914,-535.71847028,0.00012076,2]
[348966100,1736901050924,-638.91,0.00012076,2]
[348966101,1736901050933,-371.91812448,0.00012076,2]
[348966102,1736901050944,-128.08187552,0.00012076,2]
[348966103,1736901050954,-182.41812448,0.00012077,2]
[348966104,1736901050966,-317.58187552,0.00012077,2]
[348966105,1736901050976,-500.0,0.00012077,2]
[348966106,1736901050986,-500.0,0.00012077,2]
[348966107,1736901050995,-500.0,0.00012077,2]
[348966108,1736901051005,-500.0,0.00012077,2]
[348966109,1736901051015,-500.0,0.00012077,2]
[348966110,1736901051026,-500.0,0.00012077,2]
[348966111,1736901051036,-500.0,0.00012077,2]
[348966112,1736901051046,-500.0,0.00012077,2]
[348966113,1736901051055,-374.46923638,0.00012077,2]
[348966114,1736901051074,-125.53076362,0.00012077,2]
[348966115,1736901051083,-500.0,0.00012077,2]
[348966116,1736901051093,-500.0,0.00012077,2]
[348966117,1736901051103,-500.0,0.00012077,2]
[348966118,1736901051113,-500.0,0.00012077,2]
[348966119,1736901051122,-500.0,0.00012077,2]
[348966120,1736901051132,-500.0,0.00012077,2]
[348966121,1736901051141,-120.73420711,0.00012077,2]
[348966122,1736901051153,-379.26579289,0.00012077,2]
[348966123,1736901051162,-500.0,0.00012077,2]
[348966124,1736901051173,-500.0,0.00012077,2]
[348966125,1736901051183,-500.0,0.00012077,2]
[348966126,1736901051192,-500.0,0.00012077,2]
[348966127,1736901051201,-500.0,0.00012077,2]
[348966128,1736901051211,-500.0,0.00012077,2]
[348966129,1736901051221,-500.0,0.00012077,2]
[348966130,1736901051231,-269.1161624,0.00012077,2]
[348966131,1736901051242,-500.0,0.00012077,2]
[348966132,1736901051251,-893.98,0.00012077,2]
[348966133,1736901051261,-500.0,0.00012077,2]
[348966134,1736901051271,-500.0,0.00012077,2]
[348966135,1736901051281,-500.0,0.00012077,2]
[348966136,1736901051291,-709.55,0.00012077,2]
[348966137,1736901051300,-500.0,0.00012077,2]
[348966138,1736901051309,-500.0,0.00012077,2]
[348966139,1736901051318,-500.0,0.00012077,2]
[348966140,1736901051328,-500.0,0.00012077,2]
[348966141,1736901051338,-521.73,0.00012077,2]
[348966142,1736901051349,-868.69,0.00012077,2]
[348966143,1736901051358,-1284.73,0.00012077,2]
[348966144,1736901051368,-727.95,0.00012077,2]
[348966145,1736901051379,-2226.31927894,0.00012077,2]
[348966146,1736901051398,-371.8210784,0.00012077,2]
[348966147,1736901051409,-1084.56964266,0.00012077,2]
[348966148,1736901051419,-372.98401435,0.00012077,2]
[348966149,1736901051431,-747.97598565,0.00012077,2]
[348966150,1736901051441,-1589.47313621,0.00012078,2]
[348966151,1736901051450,-150.0,0.00012078,2]
[348966152,1736901051461,-150.0,0.00012079,2]
[348966153,1736901051471,-150.0,0.0001208,2]
[348966154,1736901051481,-950.34,0.0001208,2]
[348966155,1736901051491,-150.0,0.00012084,2]
[348966156,1736901051502,-150.0,0.00012084,2]
[348966157,1736901051513,-150.0,0.00012085,2]
[348966158,1736901051522,-150.0,0.00012086,2]
[348966159,1736901051532,-150.0,0.00012087,2]
[348966160,1736901051541,-150.0,0.00012089,2]
[348966161,1736901051551,-1500.0,0.0001209,2]
[348966162,1736901051560,-150.0,0.00012092,2]
[348966163,1736901051570,-500.0,0.00012094,2]
[348966164,1736901051579,-500.0,0.00012094,2]
[348966165,1736901051593,-500.0,0.00012094,2]
[348966166,1736901051607,-500.0,0.00012094,2]
[348966167,1736901051619,-500.0,0.00012094,2]
[348966168,1736901051631,-500.0,0.00012094,2]
[348966169,1736901051642,-500.0,0.00012094,2]
[348966170,1736901051652,-500.0,0.00012094,2]
[348966171,1736901051666,-500.0,0.00012094,2]
[348966172,1736901051680,-500.0,0.00012094,2]
[348966173,1736901051692,-633.26,0.00012094,2]
[348966174,1736901051704,-500.0,0.00012094,2]
[348966175,1736901051716,-500.0,0.00012094,2]
[348966176,1736901051730,-500.0,0.00012094,2]
[348966177,1736901051742,-500.0,0.00012094,2]
[348966178,1736901051754,-500.0,0.00012094,2]
[348966179,1736901051766,-500.0,0.00012094,2]
[348966180,1736901051777,-500.0,0.00012094,2]
[348966181,1736901051788,-500.0,0.00012094,2]
[348966182,1736901051801,-500.0,0.00012094,2]
[348966183,1736901051812,-500.0,0.00012094,2]
[348966184,1736901051825,-506.77192852,0.00012094,2]
[348966185,1736901051837,-581.1,0.00012094,2]
[348966186,1736901051850,-500.0,0.00012094,2]
[348966187,1736901051863,-477.81916931,0.00012094,2]
[348966188,1736901051875,-387.19186097,0.00012094,2]
[348966189,1736901051888,-500.0,0.00012094,2]
[348966190,1736901051900,-500.0,0.00012094,2]
[348966191,1736901051913,-220.70374364,0.00012094,2]
[348966192,1736901051928,-541.45,0.00012094,2]
[348966193,1736901051940,-197.13199298,0.00012094,2]
[348966194,1736901051952,-500.0,0.00012094,2]
[348966195,1736901051965,-500.0,0.00012094,2]
[348966196,1736901051977,-316.47,0.00012094,2]
[348966197,1736901051988,-500.0,0.00012094,2]
[348966198,1736901052001,-500.0,0.00012094,2]
[348966199,1736901052014,-500.0,0.00012094,2]
[348966200,1736901052028,-511.39601329,0.00012094,2]
[348966201,1736901052039,-500.0,0.00012094,2]
[348966202,1736901052051,-270.74079784,0.00012094,2]
[348966203,1736901052063,-382.05342725,0.00012094,2]
[348966204,1736901052074,-500.0,0.00012094,2]
[348966205,1736901052085,-268.69627426,0.00012094,2]
[348966206,1736901052095,-500.0,0.00012094,2]
[348966207,1736901052109,-500.0,0.00012094,2]
[348966208,1736901052123,-521.41,0.00012094,2]
[348966209,1736901052133,-500.0,0.00012094,2]
[348966210,1736901052143,-433.2923845,0.00012094,2]
[348966211,1736901052154,-500.0,0.00012094,2]
[348966212,1736901052164,-500.0,0.00012094,2]
[348966213,1736901052177,-500.0,0.00012094,2]
[348966214,1736901052190,-500.0,0.00012094,2]
[348966215,1736901052202,-172.09347775,0.00012094,2]
[348966216,1736901052213,-500.0,0.00012094,2]
[348966217,1736901052223,-500.0,0.00012094,2]
[348966218,1736901052234,-500.0,0.00012094,2]
[348966219,1736901052244,-500.0,0.00012094,2]
[348966220,1736901052255,-500.0,0.00012094,2]
[348966221,1736901052266,-500.0,0.00012094,2]
[348966222,1736901052280,-531.9,0.00012094,2]